Cogmind - Beta 16 @@@ ROGUE MODE // 2025.12.28 @ 08:22:41 Player: naththebg Result: Destroyed by as-92927 with Assembled Maul Performance ------------- Evolutions (0) 0 Regions Visited (0) 0 Robots Destroyed (0) 0 Value Destroyed (0) 0 Prototype IDs (0) 0 Alien Tech Used (0) 0 Bonus (0) 0 TOTAL SCORE: 0 Bonus ------- None Cogmind --------- Core Integrity 0/250 Matter 293/300 Energy 100/100 System Corruption 1% Temperature Cool (0) Movement Treading (160) Location -11/Scrapyard Parts ------- > --- POWER (1) -------- (None) > --- PROPULSION (2) --- Light Treads > --- UTILITY (2) ------ Small Storage Unit > --- WEAPON (2) ------- (None) > --- INVENTORY (8) ---- Ion Engine Aluminum Leg Wheel Compact Wheel Peak State ------------ > --- POWER ------------ Ion Engine > --- PROPULSION ------- Aluminum Leg Aluminum Leg > --- UTILITY ---------- Small Storage Unit > --- WEAPON ----------- Assault Rifle Assault Rifle > --- INVENTORY -------- Ion Engine Light Treads Light Treads Wheel Compact Wheel Assault Rifle [Rating: 6] Favorites ----------- Power Ion Engine Engine Ion Engine Propulsion Aluminum Leg Treads Light Treads Leg Aluminum Leg Utility Small Storage Unit Storage Small Storage Unit Weapon Assault Rifle Ballistic Gun Assault Rifle Build | -11 ------- Run | Yrd Slots Evolved . | . Power . | . Propulsion . | . Utility . | . Weapon . | . Parts Attached 9 | 9 Power 1 | 1 Engine 1 | 1 Core . | . Reactor . | . Propulsion 4 | 4 Treads 2 | 2 Leg 2 | 2 Wheel . | . Hover . | . Flight . | . Utility 1 | 1 Device . | . Storage 1 | 1 Processor . | . Hackware . | . Protection . | . Artifact . | . Weapon 3 | 3 Energy Gun . | . Energy Cannon . | . Ballistic Gun 3 | 3 Ballistic Cannon . | . Launcher . | . Special Weapon . | . Impact Weapon . | . Slashing Weapon . | . Piercing Weapon . | . Special Melee Weapon . | . Unidentified Prototypes . | . Parts Lost 6 | 6 Power 1 | 1 Propulsion 2 | 2 Utility . | . Weapon 3 | 3 Highest Loss Streak 5 | 5 To Critical Strikes . | . Average Backups 5 | 5 Power 1 | 1 Propulsion 3 | 3 Utility . | . Weapon . | . Tool/Special . | . Unused Backups 3 | 3 Power 1 | 1 Propulsion 2 | 2 Utility . | . Weapon . | . Tool/Special . | . Average Slot Usage (%) . | . Peak Build Rating 6 | 6 Average Rating 3 | 3 On Entrance . | . Avg Prop Armor Cover (%) . | . Naked Turns . | . Heaviest Build 14 | 14 Greatest Support 40 | 40 Greatest Overweight (x) 2 | 2 Average Overweight (x) . | . Largest Inventory Capacity 8 | 8 Average Capacity 7 | 7 Most Carried 7 | 7 Average Carried 5 | 5 Final Capacity 8 | 8 Final Carried 4 | 4 Class Distribution -------------------- None Dominant Class ---------------- None Resources | -11 ----------- Run | Yrd Matter Collected 233 | 233 Remotely . | . Salvage Created . | . Parts . | . Haulers Intercepted . | . Recyclers Shooed . | . Parts Field Recycled . | . Retrieved Matter . | . Parts Self-Destructed . | . Prevented . | . Parts Restored . | . Kills | -11 ------- Run | Yrd Combat Hostiles Destroyed 3 | 3 Melee 3 | 3 Classes Destroyed 1 | 1 Assembled 3 | 3 Best Kill Streak 3 | 3 Combat Bots Only 3 | 3 Max Kills in Single Turn 1 | 1 Gunslinging . | . Exploded . | . Melee 1 | 1 Uniques/NPCs Destroyed . | . Combat | -11 -------- Run | Yrd Hostile Shots Fired 39 | 39 Missed 3 | 3 Hits 36 | 36 Melee 9 | 9 Projectile 27 | 27 AOE 17 | 17 Damage Taken 1068 | 1068 Core 270 | 270 Absorbed by Shields . | . Core Remaining (%) . | . Volleys Fired 9 | 9 Largest 2 | 2 Hottest 40 | 40 Shots Fired 17 | 17 Gun 17 | 17 Cannon . | . Launcher . | . Special . | . Kinetic 17 | 17 Thermal . | . Explosive . | . Electromagnetic . | . Robot Hit Streak 3 | 3 Robot Miss Streak 1 | 1 Penetration Max . | . Secondary Targets . | . Shots Hit Robots 9 | 9 Core Hits 4 | 4 Critical Kills . | . Critical Parts Destroyed . | . Critical Strikes . | . Melee Attacks . | . Impact . | . Slashing . | . Piercing . | . Sneak Attacks . | . Combat Hostiles . | . Follow-up Attacks . | . Damage Inflicted 134 | 134 Guns 110 | 110 Cannons . | . Explosions . | . Melee . | . Ramming 24 | 24 Kinetic 110 | 110 Thermal . | . Explosive . | . Electromagnetic . | . Impact . | . Slashing . | . Piercing . | . Highest Corruption 1 | 1 Average Corruption 1 | 1 Corruption Purged . | . Corruption Blocked . | . Effects 1 | 1 Data Loss (major) 1 | 1 Overload Shots . | . Overflow Damage . | . Projectiles . | . Explosions . | . Melee . | . Knockbacks . | . Impact . | . Kinetic . | . Secondary . | . Self-Inflicted Damage . | . Shots . | . Rammed 20 | 20 Targets Rammed 23 | 23 Kicked . | . Crushed 3 | 3 Highest Temperature . | . Average Temperature . | . Received Heat Transfer . | . Siege Activations . | . Martial Activations . | . Shielding Activations . | . Robots Disrupted . | . Combat Hostiles . | . Robots Corrupted . | . Combat Hostiles . | . Parts Fried . | . Impact Corruptions . | . Robots Melted . | . Combat Hostiles . | . Parts Melted . | . Heat Transferred . | . Parts Sabotaged . | . Parts Stolen . | . Parts Stripped . | . Power Chain Reactions . | . Alert | -11 ------- Run | Yrd Maximum Alert Level . | . Low Security (%) 100 | 100 Level 1 . | . Level 2 . | . Level 3 . | . Level 4 . | . Level 5 . | . High Security . | . Max Security . | . Peak Influence . | . Initial . | . Average . | . Influence Increases . | . Influence Decreases . | . Squads Dispatched . | . Investigation . | . Extermination . | . Reinforcement . | . Assault . | . Garrison . | . Intercept . | . Searches Triggered . | . Construction Impeded . | . Haulers Reinforced . | . Active Scanning Responses . | . Cargo Convoy Interrupts . | . Stealth | -11 --------- Run | Yrd Distress Signals . | . Communications Jammed . | . Distress Signals . | . Times Spotted 7 | 7 Peak Tracking Total 2 | 2 Tactical Retreats . | . Traps | -11 ------- Run | Yrd Traps Triggered . | . Indirectly . | . Trap Hack Attempts . | . Triggered . | . Disarmed . | . Reprogrammed . | . Reused . | . Traps Extracted . | . Installed . | . Triggered . | . Machines | -11 ---------- Run | Yrd Machines Disabled . | . Max in Single Turn . | . Machines Repaired . | . Machines Dismantled . | . Machines Sabotaged . | . Overloaded Fab Kills . | . Hacking | -11 --------- Run | Yrd Machines Accessed . | . Terminals . | . Fabricators . | . Repair Stations . | . Recycling Units . | . Scanalyzers . | . Garrison Access . | . Total Hacks . | . Successful . | . Failed . | . Catastrophic . | . Database Lockouts . | . Manual . | . Terminals . | . Fabricators . | . Repair Stations . | . Recycling Units . | . Scanalyzers . | . Garrison Access . | . Terminal Hacks . | . Fabricator Hacks . | . Repair Station Hacks . | . Recycling Unit Hacks . | . Scanalyzer . | . Garrison Access Hacks . | . Unauthorized Hacks . | . Terminals . | . Fabricators . | . Repair Stations . | . Recycling Units . | . Scanalyzers . | . Garrison Access . | . Data Cores Recovered . | . Used . | . Hacking Detections . | . Full Trace Events . | . Feedback Events . | . Feedback Blocked . | . Robot Schematics Acquired . | . Robots Built . | . Authchips . | . Time . | . Total Robot Build Rating . | . Part Schematics Acquired . | . Parts Built . | . Authchips . | . Time . | . Total Part Build Rating . | . Part Studies Acquired . | . Parts Repaired . | . Time . | . Parts Recycled . | . Recycled Matter . | . Retrieved Matter . | . Retrieved Components . | . Parts Scanalyzed . | . Part Schematics Acquired . | . Parts Damaged . | . Bothacking | -11 ------------ Run | Yrd Used RIF Installer . | . Robots Hacked . | . Non-combat . | . Combat . | . Robot Hacks Applied . | . Relay Couplers Released . | . Fabnet Peak Effective % . | . Robots Rewired . | . Allies Hacked . | . Hacks Repelled . | . Allies | -11 -------- Run | Yrd Total Allies . | . Largest Group . | . Highest-Rated Group . | . Highest-Rated Ally . | . Total Orders . | . Ally Attacks . | . Total Damage . | . Kills . | . Allies Corrupted . | . Allies Melted . | . Intel | -11 ------- Run | Yrd Active Infowar (turns) . | . Robot Analysis Total . | . Derelict Logs Recovered . | . Drone Launches . | . Drone Recoveries . | . Exploration | -11 ------------- Run | Yrd Turns Passed 2604 | 2604 Spaces Moved 603 | 603 Core 9 | 9 Treads 10 | 10 Legs 584 | 584 Wheels . | . Hover . | . Flight . | . Fastest Speed 50 | 50 Average Speed 119 | 119 Slowest Speed 160 | 160 Overloaded Moves . | . Propulsion Burnouts . | . Robots Hopped . | . Potential Cave-ins . | . Cave-ins Triggered . | . Exploration Rate (%) 58 | 58 Regions Visited . Branch Regions . Pre-discovered Areas . | . Known Exits Taken . | . Unknown Exits Taken . | . Scrap Searched . | . Spaces Dug . | . Terrain Destroyed . | . Melee . | . Projectile . | . AOE . | . Terrain Rammed . | . Walls Destroyed . | . Machines Disabled . | . Actions | -11 --------- Run | Yrd Total 2453 | 2453 Wait 1799 | 1799 Move 603 | 603 Hop . | . Pick Up 10 | 10 Fast Attach 2 | 2 Attach 6 | 6 Detach . | . Swap 1 | 1 Drop . | . Fire 9 | 9 Melee . | . Ram . | . Kick . | . Crush 23 | 23 Escape Stasis . | . Rewire . | . Trap . | . Miscellaneous . | . Route ------- -11/Scrapyard (discovered 1 exit: [*Mat]) History --------- Turn | Location | Event 27 | -11/Scrapyard | Discovered new exit (range 15) 1273 | -11/Scrapyard | Assembled infested the area 1300 | -11/Scrapyard | Core integrity fell below 50% 1328 | -11/Scrapyard | Lost 5 parts (1p1n3w) 2564 | -11/Scrapyard | Core integrity fell below 20% 2605 | -11/Scrapyard | Destroyed by as-92927 with Assembled Maul Last Messages --------------- 01295_ Assault Rifle destroyed. 01299_ The unstable cave ceiling collapses. 01301_ D-53 Grenadier destroyed. 01312_ The unstable cave ceiling collapses. 01372_ T-07 Excavator is excavating. 02553_ Slammed into as-99426. 02568_ Crushed as-99426. 02568_ as-99426 destroyed. 02580_ Slammed into as-87128. 02585_ Crushed as-87128. 02585_ as-87128 destroyed. 02587_ Slammed into as-03429. 02593_ Crushed as-03429. 02593_ as-03429 destroyed. 02600_ Slammed into as-92927. 02602_ Lgt. Treads destroyed. 02602_ System corrupted by crushing effect (+1). 02603_ Slammed into as-92927. 02605_ System corrupted: Substantial component data lost. Map ----- +----------------------------------------------------+ | ???????????????????????????????# #? | | ???????################????????# # # #? | | ??????## # #????????# # #? | | ??????# # #????????######## # ###? | | ??????# ##########???# # #?? | | ??????# # ## #???# ##? | | ??????# # # #???# # ## | | ??????# # # ##### | | ??????# # | | ??????# # ## | | ??????# #### ### ##### < | | ????############??###?# #???# | | ???## # #????????# #???####### | | ???# #????????#### ####?????????#### | | ???# #???????????# #???????????????# | | ???# #???????????# #???????????????# | | #### #???????????# #???????????????# | | # #???????????# #???????????????# | | # #???????????# #???????????????###### | | # #??????????## ##???????????????????? | | # ## ################# #???????????????????? | | #???????????????????? | | # #???????????????????? | | ## ######## ########## #???????????????????? | | ####????? ????##### #####?????????????????? | | #???????# ???# @a #?????????????????? | | ####???????# #??# a #?????????????????? | | ????###????# #??# #?????????????????? | | ##### ###??# #??# #?????????????????? | | # #??## #??# #?????????????????? | | # ############## #?????????????????? | | #?????????????????? | | # ############## #?????????????????? | | # ## #?????###########?????????????????? | | ## ## #?????????????????????????????????? | | #### ## #?????????????????????????????????? | | ???# ## #?????????????????????????????????? | | ???# ## #?????????????????????????????????? | | #?## ## #?????????????????????????????????? | | #?# ## #####?????????????????????????????????? | | ### #?????????????????????????????????? | | #?????????????????????????????????? | | ### ##?????????????????????????????????? | | #?## #######??????????????????????????????????? | | ##### #####??????????????????????????????????????? | | ## #??????????????????????????????????????? | | #??????????????????????????????????????? | | ## #??????????????????????????????????????? | | ?# #??????????????????????????????????????? | | ?# #??????????????????????????????????????? | +----------------------------------------------------+ Best States ------------- Heat Dissipation 25 Energy Generation 10 Energy Capacity 250 Matter Stores 275 Matter Capacity 300 Sight Range 16 Terrain Scan Density 10 Evasion (%) 55 Recoil Reduction 2 Item Schematics ----------------- None Robot Schematics ------------------ None Fabricated ------------ Nothing Repaired ---------- Nothing Studied --------- None Alien Tech Used ----------------- None Achievements -------------- Curiosity Killed The Cat Challenges ------------ None Game ------ Seed HypertargetingGuidanceFlamer Manual? 0 Play Time 00:09:26 Cumulative 433.1 hours Start 2025.12.28 @ 08:17:50 End 2025.12.28 @ 08:22:41 Sessions 0 Manual Loads 0 Difficulty Rogue Special Mode None Game No. 206 Rogue 206 Adventurer 0 Explorer 0 Win Type - Total 13 Types 9/0/2/0/0/0/0/1/0/1 Lore% 84 Gallery% 82 Achievement% 61 Wizard Run 0 Options --------- Layout 1 ASCII 0 Keyboard 0 Movement Mouse Keybinds 0 Fullscreen 1 Font 24/Smallcaps Map View 50x35 Zoom Use 0% Tactical HUD 1 Map Filters NONE Filters NONE Steam 1 RUN: ebccae32-943b-460e-9a90-ac8c7990049e